fUSD/lending_fUSD_20240616
["ID","MTS","AMOUNT","RATE_DAILY","PERIOD"]
[329622854,1718514653412,-432.40979902,0.00021917,2]
[329622855,1718514653447,-432.68350112,0.00021917,2]
[329622856,1718514653582,-25.92175837,0.00021917,2]
[329622857,1718514653620,-41.39474051,0.00021917,2]
[329622858,1718514653633,-500.0,0.00021917,2]
[329622859,1718514653648,-1002.88,0.00021917,2]
[329622860,1718514654274,-500.0,0.00021917,2]
[329622861,1718514654322,-500.0,0.00021917,2]
[329622862,1718514654348,-462.78518063,0.00021917,2]
[329622863,1718514654391,-315.59481937,0.00021917,2]
[329622864,1718514654420,-500.0,0.00021917,2]
[329622865,1718514654468,-500.0,0.00021917,2]
[329622866,1718514654496,-500.0,0.00021917,2]
[329622867,1718514654528,-514.11619531,0.00021917,2]
[329622868,1718514654541,-500.0,0.00021917,2]
[329622869,1718514654568,-218.86429518,0.00021917,2]
[329622870,1718514654583,-281.13570482,0.00021917,2]
[329622871,1718514654626,-1202.7,0.00021917,2]
[329622872,1718514654653,-500.0,0.00021917,2]
[329622873,1718514654677,-500.0,0.00021917,2]
[329622874,1718514654703,-776.34,0.00021917,2]
[329622875,1718514654734,-500.0,0.00021917,2]
[329622876,1718514654745,-500.0,0.00021917,2]
[329622877,1718514654757,-500.0,0.00021917,2]
[329622878,1718514654778,-544.11,0.00021917,2]
[329622879,1718514654813,-500.0,0.00021917,2]
[329622880,1718514654847,-500.0,0.00021917,2]
[329622881,1718514654860,-527.2,0.00021917,2]
[329622882,1718514654888,-500.0,0.00021917,2]
[329622883,1718514654928,-500.0,0.00021917,2]
[329622884,1718514654973,-516.30648854,0.00021917,2]
[329622885,1718514654998,-500.0,0.00021917,2]
[329622886,1718514655063,-675.42,0.00021917,2]
[329622887,1718514655084,-500.0,0.00021917,2]
[329622888,1718514655104,-500.0,0.00021917,2]
[329622889,1718514655131,-5.99280664,0.00021917,7]
[329622890,1718514655731,-494.00719336,0.00021917,7]
[329622891,1718514655751,-500.0,0.00021917,2]
[329622892,1718514655791,-500.0,0.00021917,2]
[329622893,1718514655808,-500.0,0.00021917,2]
[329622894,1718514655822,-500.0,0.00021917,2]
[329622895,1718514655838,-500.0,0.00021917,2]
[329622896,1718514655866,-500.0,0.00021917,2]
[329622897,1718514655892,-500.0,0.00021917,2]
[329622898,1718514655903,-500.0,0.00021917,2]
[329622899,1718514655920,-500.0,0.00021917,2]
[329622900,1718514655948,-500.0,0.00021917,2]
[329622901,1718514655960,-343.84,0.00021917,2]
[329622902,1718514655973,-500.0,0.00021917,2]
[329622903,1718514655989,-500.0,0.00021917,2]
[329622904,1718514656016,-500.0,0.00021917,2]
[329622905,1718514656034,-1832.91,0.00021917,2]
[329622906,1718514656047,-500.0,0.00021917,2]
[329622907,1718514656062,-500.0,0.00021917,2]
[329622908,1718514656076,-500.0,0.00021917,2]
[329622909,1718514656088,-500.0,0.00021917,2]
[329622910,1718514656116,-567.88,0.00021917,2]
[329622911,1718514656134,-551.74,0.00021917,2]
[329622912,1718514656145,-500.0,0.00021917,2]
[329622913,1718514656176,-500.0,0.00021917,2]
[329622914,1718514656292,-500.0,0.00021917,2]
[329622915,1718514656308,-500.0,0.00021917,2]
[329622916,1718514656325,-901.11,0.00021917,2]
[329622917,1718514656369,-681.26,0.00021917,2]
[329622918,1718514656404,-500.0,0.00021917,2]
[329622919,1718514656440,-500.0,0.00021917,2]
[329622920,1718514656453,-500.0,0.00021917,2]
[329622921,1718514656552,-726.69,0.00021917,2]
[329622922,1718514656567,-3304.19,0.00021917,2]
[329622923,1718514656578,-500.0,0.00021917,2]
[329622924,1718514656590,-500.0,0.00021917,2]
[329622925,1718514656603,-545.46,0.00021917,2]
[329622926,1718514656614,-736.37,0.00021917,2]
[329622927,1718514656626,-500.0,0.00021917,2]
[329622928,1718514656637,-583.83310342,0.00021917,2]
[329622929,1718514656650,-500.0,0.00021917,2]
[329622930,1718514656661,-500.0,0.00021917,2]
[329622931,1718514656672,-500.0,0.00021917,2]
[329622932,1718514656684,-500.0,0.00021917,2]
[329622933,1718514656695,-500.0,0.00021917,2]
[329622934,1718514656721,-500.0,0.00021917,2]
[329622935,1718514656761,-500.0,0.00021917,2]
[329622936,1718514656785,-500.0,0.00021917,2]
[329622937,1718514656801,-500.0,0.00021917,2]
[329622938,1718514656824,-500.0,0.00021917,2]
[329622939,1718514656839,-14230.41,0.00021917,2]
[329622940,1718514656850,-997.85,0.00021917,2]
[329622941,1718514656861,-300.90289557,0.00021917,2]
[329622942,1718514656873,-530.5,0.00021917,2]
[329622943,1718514656889,-500.0,0.00021917,2]
[329622944,1718514656901,-1006.75,0.00021917,2]
[329622945,1718514656913,-500.0,0.00021917,2]
[329622946,1718514656925,-500.0,0.00021917,2]
[329622947,1718514656953,-500.0,0.00021917,2]
[329622948,1718514656968,-500.0,0.00021917,2]
[329622949,1718514656985,-500.0,0.00021917,2]
[329622950,1718514657020,-500.0,0.00021917,2]
[329622951,1718514657045,-1157.82,0.00021917,2]
[329622952,1718514657066,-500.0,0.00021917,2]
[329622953,1718514657077,-759.3,0.00021917,2]
[329622954,1718514657093,-500.0,0.00021917,2]
[329622955,1718514657112,-500.0,0.00021917,2]
[329622956,1718514657129,-500.0,0.00021917,2]
[329622957,1718514657141,-674.57,0.00021917,2]
[329622958,1718514657154,-566.27,0.00021917,2]
[329622959,1718514657169,-500.0,0.00021917,2]
[329622960,1718514657187,-1539.31,0.00021917,2]
[329622961,1718514657198,-943.14,0.00021917,2]
[329622962,1718514657221,-500.0,0.00021917,2]
[329622963,1718514657238,-500.0,0.00021917,2]
[329622964,1718514657251,-659.14,0.00021917,2]
[329622965,1718514657268,-500.0,0.00021917,2]
[329622966,1718514657294,-500.0,0.00021917,2]
[329622967,1718514657317,-500.0,0.00021917,2]
[329622968,1718514657344,-500.0,0.00021917,2]
[329622969,1718514657360,-500.0,0.00021917,2]
[329622970,1718514657374,-560.32,0.00021917,2]
[329622971,1718514657386,-614.56,0.00021917,2]
[329622972,1718514657400,-500.0,0.00021917,2]
[329622973,1718514657412,-500.0,0.00021917,2]
[329622974,1718514657425,-7764.92,0.00021917,2]
[329622975,1718514657437,-557.31,0.00021917,2]
[329622976,1718514657449,-552.59,0.00021917,2]
[329622977,1718514657466,-661.73,0.00021917,2]
[329622978,1718514657482,-611.43,0.00021917,2]
[329622979,1718514657504,-674.64,0.00021917,2]
[329622980,1718514657517,-1729.68,0.00021917,2]
[329622981,1718514657530,-500.0,0.00021917,2]
[329622982,1718514657542,-500.0,0.00021917,2]
[329622983,1718514657553,-500.0,0.00021917,2]
[329622984,1718514657565,-510.76454081,0.00021917,2]
[329622985,1718514657578,-1354.36,0.00021917,2]
[329622986,1718514657591,-604.17,0.00021917,2]
[329622987,1718514657602,-542.9693191,0.00021917,2]
[329622988,1718514657614,-10271.42,0.00021917,2]
[329622989,1718514657626,-664.59,0.00021917,2]
[329622990,1718514657639,-500.0,0.00021917,2]
[329622991,1718514657653,-900.1,0.00021917,2]
[329622992,1718514657691,-500.0,0.00021917,2]
[329622993,1718514657703,-500.0,0.00021917,2]
[329622994,1718514657726,-500.0,0.00021917,2]
[329622995,1718514657742,-500.0,0.00021917,2]
[329622996,1718514657762,-818.66,0.00021917,2]
[329622997,1718514657778,-500.0,0.00021917,2]
[329622998,1718514657794,-1612.07,0.00021917,2]
[329622999,1718514657807,-1755.9,0.00021917,2]
[329623000,1718514657825,-611.26,0.00021917,2]
[329623001,1718514657840,-500.0,0.00021917,2]
[329623002,1718514657860,-1606.26,0.00021917,2]
[329623003,1718514657875,-500.0,0.00021917,2]
[329623004,1718514657888,-4378.33,0.00021917,2]
[329623005,1718514657957,-500.0,0.00021917,2]
[329623006,1718514657982,-500.0,0.00021917,2]
[329623007,1718514658031,-500.0,0.00021917,2]
[329623008,1718514658042,-4916.83,0.00021917,2]
[329623009,1718514658060,-2853.1,0.00021917,2]
[329623010,1718514658071,-500.0,0.00021917,2]
[329623011,1718514658093,-1035.35,0.00021917,2]
[329623012,1718514658119,-500.0,0.00021917,2]
[329623013,1718514658135,-199.55902335,0.00021917,2]
[329623014,1718514658157,-869.12,0.00021917,2]
[329623015,1718514658180,-567.1,0.00021917,2]
[329623016,1718514658195,-578.11,0.00021917,2]
[329623017,1718514658208,-500.0,0.00021917,2]
[329623018,1718514658221,-500.0,0.00021917,2]
[329623019,1718514658234,-500.0,0.00021917,2]
[329623020,1718514658247,-500.0,0.00021917,2]
[329623021,1718514658269,-1538.82,0.00021917,2]
[329623022,1718514658284,-763.71,0.00021917,2]
[329623023,1718514658300,-2296.48,0.00021917,2]
[329623024,1718514658313,-1775.07,0.00021917,2]
[329623025,1718514658326,-513.88243924,0.00021917,2]
[329623026,1718514658348,-500.0,0.00021917,2]
[329623027,1718514658361,-964.71,0.00021917,2]
[329623028,1718514658376,-500.0,0.00021917,2]
[329623029,1718514658388,-895.78,0.00021917,2]
[329623030,1718514658413,-642.17,0.00021917,2]
[329623031,1718514658434,-504.3156841,0.00021917,2]
[329623032,1718514658451,-636.93,0.00021917,2]
[329623033,1718514658467,-2443.29,0.00021917,2]
[329623034,1718514658480,-1515.42,0.00021917,2]
[329623035,1718514658501,-500.0,0.00021917,2]
[329623036,1718514658516,-1004.46,0.00021917,2]
[329623037,1718514658528,-500.0,0.00021917,2]
[329623038,1718514658538,-803.03,0.00021917,2]
[329623039,1718514658553,-1070.36,0.00021917,2]
[329623040,1718514658563,-923.04,0.00021917,2]
[329623041,1718514658576,-500.0,0.00021917,2]
[329623042,1718514658597,-797.61,0.00021917,2]
[329623043,1718514658608,-500.0,0.00021917,2]
[329623044,1718514658621,-593.8,0.00021917,2]
[329623045,1718514658632,-500.0,0.00021917,2]
[329623046,1718514658652,-588.71,0.00021917,2]
[329623047,1718514658673,-500.0,0.00021917,2]
[329623048,1718514658690,-500.0,0.00021917,2]
[329623049,1718514658703,-2230.64,0.00021917,2]
[329623050,1718514658716,-500.0,0.00021917,2]
[329623051,1718514658729,-1061.13,0.00021917,2]
[329623052,1718514658748,-500.0,0.00021917,2]
[329623053,1718514658762,-9618.01,0.00021917,2]
[329623054,1718514658785,-500.0,0.00021917,2]
[329623055,1718514658801,-500.0,0.00021917,2]
[329623056,1718514658813,-557.05475645,0.00021917,2]
[329623057,1718514658826,-500.0,0.00021917,2]
[329623058,1718514658843,-2383.54,0.00021917,2]
[329623059,1718514658854,-500.0,0.00021917,2]
[329623060,1718514658866,-500.0,0.00021917,2]
[329623061,1718514658877,-500.0,0.00021917,2]
[329623062,1718514658890,-860.94,0.00021917,2]
[329623063,1718514658907,-4216.59,0.00021917,2]
[329623064,1718514658917,-792.78,0.00021917,2]
[329623065,1718514658936,-858.57,0.00021917,2]
[329623066,1718514658953,-2109.27,0.00021917,2]
[329623067,1718514658966,-567.07,0.00021917,2]
[329623068,1718514658986,-1400.62,0.00021917,2]
[329623069,1718514659017,-500.0,0.00021917,2]
[329623070,1718514659129,-1037.47,0.00021917,2]
[329623071,1718514659168,-1574.3,0.00021917,2]
[329623072,1718514659206,-500.0,0.00021917,2]
[329623073,1718514659221,-500.0,0.00021917,2]
[329623074,1718514659246,-500.0,0.00021917,2]
[329623075,1718514659310,-500.0,0.00021917,2]
[329623076,1718514659332,-2771.95,0.00021917,2]
[329623077,1718514659354,-500.0,0.00021917,2]
[329623078,1718514659370,-3713.47,0.00021917,2]
[329623079,1718514659400,-534.45,0.00021917,2]
[329623080,1718514659424,-1420.21,0.00021917,2]
[329623081,1718514659451,-790.92,0.00021917,2]
[329623082,1718514659479,-500.0,0.00021917,2]
[329623083,1718514659503,-500.0,0.00021917,2]
[329623084,1718514659529,-1310.36,0.00021917,2]
[329623085,1718514659553,-500.0,0.00021917,2]
[329623086,1718514659566,-500.0,0.00021917,2]
[329623087,1718514659582,-633.25,0.00021917,2]
[329623088,1718514659612,-1378.93,0.00021917,2]
[329623089,1718514659629,-851.88,0.00021917,2]
[329623090,1718514659640,-500.0,0.00021917,2]
[329623091,1718514659653,-2966.95,0.00021917,2]
[329623092,1718514659666,-636.09,0.00021917,2]
[329623093,1718514659693,-712.87,0.00021917,2]
[329623094,1718514659708,-500.0,0.00021917,2]
[329623095,1718514659733,-500.0,0.00021917,2]
[329623096,1718514659749,-827.77,0.00021917,2]
[329623097,1718514659793,-2232.36,0.00021917,2]
[329623098,1718514659820,-860.52,0.00021917,2]
[329623099,1718514659833,-2707.96,0.00021917,2]
[329623100,1718514659872,-500.0,0.00021917,2]
[329623101,1718514659884,-614.18,0.00021917,2]
[329623102,1718514659917,-2212.02,0.00021917,2]
[329623103,1718514659940,-500.0,0.00021917,2]
[329623104,1718514659958,-703.42,0.00021917,2]
[329623105,1718514659978,-721.36,0.00021917,2]
[329623106,1718514660001,-500.0,0.00021917,2]
[329623107,1718514660030,-500.0,0.00021917,2]
[329623108,1718514660060,-4360.28,0.00021917,2]
[329623109,1718514660086,-500.0,0.00021917,2]
[329623110,1718514660105,-2177.96,0.00021917,2]
[329623111,1718514660131,-500.0,0.00021917,2]
[329623112,1718514660153,-1356.14,0.00021917,2]
[329623113,1718514660164,-500.0,0.00021917,2]
[329623114,1718514660176,-578.68,0.00021917,2]
[329623115,1718514660192,-500.0,0.00021917,2]
[329623116,1718514660203,-500.0,0.00021917,2]
[329623117,1718514660223,-749.56,0.00021917,2]
[329623118,1718514660233,-500.0,0.00021917,2]
[329623119,1718514660249,-500.0,0.00021917,2]
[329623120,1718514660269,-500.0,0.00021917,2]
[329623121,1718514660279,-1211.0,0.00021917,2]
[329623122,1718514660289,-1848.29,0.00021917,2]
[329623123,1718514660313,-500.0,0.00021917,2]
[329623124,1718514660326,-500.0,0.00021917,2]
[329623125,1718514660341,-666.51,0.00021917,2]
[329623126,1718514660372,-1213.86,0.00021917,2]
[329623127,1718514660384,-578.04,0.00021917,2]
[329623128,1718514660395,-500.0,0.00021917,2]
[329623129,1718514660422,-583.95,0.00021917,2]
[329623130,1718514660437,-2709.96,0.00021917,2]
[329623131,1718514660454,-500.0,0.00021917,2]
[329623132,1718514660465,-500.0,0.00021917,2]
[329623133,1718514660475,-795.69,0.00021917,2]
[329623134,1718514660485,-500.0,0.00021917,2]
[329623135,1718514660507,-1483.55,0.00021917,2]
[329623136,1718514660520,-1309.75,0.00021917,2]
[329623137,1718514660531,-790.88,0.00021917,2]
[329623138,1718514660541,-500.0,0.00021917,2]
[329623139,1718514660551,-500.0,0.00021917,2]
[329623140,1718514660569,-500.0,0.00021917,2]
[329623141,1718514660581,-555.11,0.00021917,2]
[329623142,1718514660598,-500.0,0.00021917,2]
[329623143,1718514660612,-1243.88,0.00021917,2]
[329623144,1718514660624,-500.0,0.00021917,2]
[329623145,1718514660668,-3595.59,0.00021917,2]
[329623146,1718514660678,-500.0,0.00021917,2]
[329623147,1718514660690,-500.0,0.00021917,2]
[329623148,1718514660706,-500.0,0.00021917,2]
[329623149,1718514660718,-1564.83,0.00021917,2]
[329623150,1718514660728,-1006.94,0.00021917,2]
[329623151,1718514660739,-500.0,0.00021917,2]
[329623152,1718514660764,-589.71409324,0.00021917,2]
[329623153,1718514660788,-1366.9,0.00021917,2]
[329623154,1718514660813,-500.0,0.00021917,2]
[329623155,1718514660825,-500.0,0.00021917,2]
[329623156,1718514660840,-799.86,0.00021917,2]
[329623157,1718514660854,-523.6,0.00021917,2]
[329623158,1718514660867,-500.0,0.00021917,2]
[329623159,1718514660880,-729.35,0.00021917,2]
[329623160,1718514660892,-2013.29,0.00021917,2]
[329623161,1718514660906,-500.0,0.00021917,2]
[329623162,1718514660918,-500.0,0.00021917,2]
[329623163,1718514660932,-989.7,0.00021917,2]
[329623164,1718514660945,-1202.1,0.00021917,2]
[329623165,1718514660955,-1512.39,0.00021917,2]
[329623166,1718514660966,-500.0,0.00021917,2]
[329623167,1718514660978,-500.0,0.00021917,2]
[329623168,1718514660990,-500.0,0.00021917,2]
[329623169,1718514661003,-500.0,0.00021917,2]
[329623170,1718514661016,-500.0,0.00021917,2]
[329623171,1718514661037,-500.0,0.00021917,2]
[329623172,1718514661081,-898.42,0.00021917,2]
[329623173,1718514661093,-680.39,0.00021917,2]
[329623174,1718514661110,-651.97,0.00021917,2]
[329623175,1718514661122,-500.0,0.00021917,2]
[329623176,1718514661136,-525.67,0.00021917,2]
[329623177,1718514661171,-500.0,0.00021917,2]
[329623178,1718514661197,-1084.0,0.00021917,2]
[329623179,1718514661240,-1217.87,0.00021917,2]
[329623180,1718514661269,-4820.64,0.00021917,2]
[329623181,1718514661284,-1818.54,0.00021917,2]
[329623182,1718514661311,-500.0,0.00021917,2]
[329623183,1718514661350,-500.0,0.00021917,2]
[329623184,1718514661361,-633.1,0.00021917,2]
[329623185,1718514661374,-2630.9,0.00021917,2]
[329623186,1718514661385,-501.51,0.00021917,2]
[329623187,1718514661396,-1495.18,0.00021917,2]
[329623188,1718514661413,-500.78,0.00021917,2]
[329623189,1718514661432,-422.36473055,0.00021917,2]
[329623190,1718514661442,-1510.03,0.00021917,2]
[329623191,1718514661457,-1076.28,0.00021917,2]
[329623192,1718514661478,-500.0,0.00021917,2]
[329623193,1718514661488,-500.0,0.00021917,2]
[329623194,1718514661518,-1023.85,0.00021917,2]
[329623195,1718514661541,-500.0,0.00021917,2]
[329623196,1718514661554,-500.0,0.00021917,2]
[329623197,1718514661569,-514.32,0.00021917,2]
[329623198,1718514661589,-801.98,0.00021917,2]
[329623199,1718514661600,-5728.5,0.00021917,2]
[329623200,1718514661615,-526.07,0.00021917,2]
[329623201,1718514661630,-500.0,0.00021917,2]
[329623202,1718514661672,-1246.39,0.00021917,2]
[329623203,1718514661684,-12175.18,0.00021917,2]
[329623204,1718514661695,-1613.0,0.00021917,2]
[329623205,1718514661710,-500.0,0.00021917,2]
[329623206,1718514661724,-1529.61,0.00021917,2]
[329623207,1718514661736,-918.72,0.00021917,2]
[329623208,1718514661749,-2489.26,0.00021917,2]
[329623209,1718514661765,-771.85,0.00021917,2]
[329623210,1718514661786,-500.0,0.00021917,2]
[329623211,1718514661806,-500.0,0.00021917,2]
[329623212,1718514661828,-500.0,0.00021917,2]
[329623213,1718514661839,-1085.72,0.00021917,2]
[329623214,1718514661849,-805.42,0.00021917,2]
[329623215,1718514661863,-203.46,0.00021918,2]
[329623216,1718514661879,-250.0,0.00021918,2]
[329623217,1718514661890,-746.1,0.00021918,2]
[329623218,1718514661910,-500.0,0.00021972,3]
[329623219,1718514661940,-697.33,0.00021973,2]
[329623220,1718514661977,-788.26186134,0.00022,2]
[329623221,1718514661987,-842.21520756,0.00022,2]
[329623222,1718514662008,-842.21520756,0.00022,2]
[329623223,1718514662052,-842.21520756,0.00022,2]
[329623224,1718514662065,-842.21520756,0.00022,2]
[329623225,1718514662116,-842.21520756,0.00022,2]
[329623226,1718514662127,-418.91171372,0.00022,2]
[329623227,1718514662144,-418.91171372,0.00022,2]
[329623228,1718514662157,-418.91171372,0.00022,2]
[329623229,1718514662173,-260.0,0.0002207,2]
[329623230,1718514662194,-14649.26280233,0.00022091,2]
[329623231,1718514662211,-417.85,0.00022136,2]
[329623232,1718514662225,-851.72,0.00022136,2]
[329623233,1718514662241,-851.72,0.00022136,2]
[329623234,1718514662252,-417.85,0.00022136,2]
[329623235,1718514662266,-851.72,0.00022136,2]
[329623236,1718514662291,-847.76,0.00022136,2]
[329623237,1718514662332,-416.41,0.00022136,2]
[329623238,1718514662349,-500.0,0.0002219,3]
[329623239,1718514662359,-500.0,0.0002219,3]
[329623240,1718514662370,-500.0,0.0002219,3]
[329623241,1718514662382,-220.29709413,0.00022191,2]
[329623242,1718514662397,-159.36315075,0.00022191,2]
[329623243,1718514662415,-7792.90897226,0.00022191,2]
[329623244,1718514662436,-500.0,0.00022191,3]
[329623245,1718514662447,-501.70434155,0.00022191,3]
[329623246,1718514662493,-500.0,0.00022191,3]
[329623247,1718514662506,-177.06060018,0.00022191,3]
[329623248,1718514662531,-162.97592348,0.00022191,3]
[329623249,1718514662556,-500.0,0.00022191,3]
[329623250,1718514662569,-500.0,0.00022191,3]
[329623251,1718514662636,-500.0,0.00022191,3]
[329623252,1718514662648,-297.68877401,0.00022191,3]
[329623253,1718514662660,-500.0,0.00022191,3]
[329623254,1718514662680,-500.0,0.00022191,3]
[329623255,1718514662693,-500.0,0.00022191,3]
[329623256,1718514662704,-500.0,0.00022191,3]
[329623257,1718514662718,-500.0,0.00022191,3]
[329623258,1718514662731,-500.0,0.00022191,3]
[329623259,1718514662743,-500.0,0.00022191,3]
[329623260,1718514662759,-500.0,0.00022191,3]
[329623261,1718514662771,-500.0,0.00022191,3]
[329623262,1718514662783,-500.0,0.00022191,3]
[329623263,1718514662793,-500.0,0.00022191,3]
[329623264,1718514662828,-500.0,0.00022191,3]
[329623265,1718514662840,-500.0,0.00022191,3]
[329623266,1718514662857,-500.0,0.00022191,3]
[329623267,1718514662912,-500.0,0.00022191,3]
[329623268,1718514662933,-500.0,0.00022191,3]
[329623269,1718514662951,-500.0,0.00022191,3]
[329623270,1718514662970,-1006.68,0.00022191,3]
[329623271,1718514662987,-810.35,0.00022191,3]
[329623272,1718514663037,-167.40003468,0.00022191,3]
[329623273,1718514663052,-500.0,0.00022191,3]
[329623274,1718514663070,-500.0,0.00022191,3]
[329623275,1718514663111,-500.0,0.00022191,3]
[329623276,1718514663148,-500.0,0.00022191,3]
[329623277,1718514663224,-500.0,0.00022191,3]
[329623278,1718514663256,-731.88,0.00022191,3]
[329623279,1718514663295,-500.0,0.00022191,3]
[329623280,1718514663345,-500.0,0.00022191,3]
[329623281,1718514663364,-500.0,0.00022191,3]
[329623282,1718514663411,-681.94,0.00022191,3]
[329623283,1718514663436,-627.82,0.00022191,3]
[329623284,1718514663448,-536.58,0.00022191,3]
[329623285,1718514663459,-500.0,0.00022191,3]
[329623286,1718514663475,-577.1476907,0.00022191,3]
[329623287,1718514663487,-500.0,0.00022191,3]
[329623288,1718514663498,-500.0,0.00022191,3]
[329623289,1718514663510,-500.0,0.00022191,3]
[329623290,1718514663527,-500.0,0.00022191,3]
[329623291,1718514663560,-901.46,0.00022191,3]
[329623292,1718514663580,-500.0,0.00022191,3]
[329623293,1718514663592,-500.0,0.00022191,3]
[329623294,1718514663605,-2047.36,0.00022191,3]
[329623295,1718514663632,-500.0,0.00022191,3]
[329623296,1718514663657,-500.0,0.00022191,3]
[329623297,1718514663671,-500.0,0.00022191,3]
[329623298,1718514663731,-500.0,0.00022191,3]
[329623299,1718514663758,-500.0,0.00022191,3]
[329623300,1718514663782,-500.0,0.00022191,3]
[329623301,1718514663820,-188.34502425,0.00022191,3]
[329623302,1718514663854,-500.0,0.00022191,3]
[329623303,1718514663887,-542.26186426,0.00022191,3]
[329623304,1718514663919,-500.0,0.00022191,3]
[329623305,1718514663939,-500.0,0.00022191,3]
[329623306,1718514663964,-843.71,0.00022191,3]
[329623307,1718514663981,-500.0,0.00022191,3]
[329623308,1718514664060,-500.0,0.00022191,3]
[329623309,1718514664081,-494.95620809,0.00022191,3]
[329623310,1718514664106,-500.0,0.00022191,3]
[329623311,1718514664118,-500.0,0.00022191,3]
[329623312,1718514664147,-614.71137283,0.00022191,3]
[329623313,1718514664169,-500.0,0.00022191,3]
[329623314,1718514664226,-500.0,0.00022191,3]
[329623315,1718514664242,-513.2,0.00022191,3]
[329623316,1718514664284,-500.0,0.00022191,3]
[329623317,1718514664302,-1056.47,0.00022191,3]
[329623318,1718514664386,-500.0,0.00022191,3]
[329623319,1718514664424,-500.0,0.00022191,3]
[329623320,1718514664442,-500.0,0.00022191,3]
[329623321,1718514664453,-500.0,0.00022191,3]
[329623322,1718514664464,-906.02,0.00022191,3]
[329623323,1718514664476,-500.0,0.00022191,3]
[329623324,1718514664544,-500.0,0.00022191,3]
[329623325,1718514664566,-500.0,0.00022191,3]
[329623326,1718514664581,-500.0,0.00022191,3]
[329623327,1718514664593,-500.08,0.00022191,3]
[329623328,1718514664605,-500.0,0.00022191,3]
[329623329,1718514664621,-500.0,0.00022191,3]
[329623330,1718514664634,-500.0,0.00022191,3]
[329623331,1718514664647,-500.0,0.00022191,3]
[329623332,1718514664666,-500.0,0.00022191,3]
[329623333,1718514664686,-500.0,0.00022191,3]
[329623334,1718514664701,-500.0,0.00022191,3]
[329623335,1718514664714,-500.0,0.00022191,3]
[329623336,1718514664745,-959.23,0.00022191,3]
[329623337,1718514664757,-500.0,0.00022191,3]
[329623338,1718514664788,-500.0,0.00022191,3]
[329623339,1718514664816,-500.0,0.00022191,3]
[329623340,1718514664836,-631.23,0.00022191,3]
[329623341,1718514664860,-500.0,0.00022191,3]
[329623342,1718514664878,-500.0,0.00022191,3]
[329623343,1718514664897,-500.0,0.00022191,3]
[329623344,1718514664932,-500.0,0.00022191,3]
[329623345,1718514664946,-666.35,0.00022191,3]
[329623346,1718514664966,-500.0,0.00022191,3]
[329623347,1718514664996,-500.0,0.00022191,3]
[329623348,1718514665014,-500.0,0.00022191,3]
[329623349,1718514665031,-500.0,0.00022191,3]
[329623350,1718514665054,-639.86,0.00022191,3]
[329623351,1718514665102,-500.0,0.00022191,3]
[329623352,1718514665118,-500.0,0.00022191,3]
[329623353,1718514665150,-500.0,0.00022191,3]